lending/lending_fUSD_20250131
["ID","MTS","AMOUNT","RATE_DAILY","PERIOD"]
[351067002,1738323069532,-495.93598208,0.00016712,2]
[351067003,1738323069541,-1595.96,0.00016712,2]
[351067004,1738323069550,-506.91,0.00016712,2]
[351067005,1738323069559,-500.0,0.00016712,2]
[351067006,1738323069568,-500.0,0.00016712,2]
[351067007,1738323069577,-3722.14,0.00016712,2]
[351067008,1738323069586,-500.0,0.00016712,2]
[351067009,1738323069594,-500.0,0.00016712,2]
[351067010,1738323069603,-500.0,0.00016712,2]
[351067011,1738323069613,-500.0,0.00016712,2]
[351067012,1738323069622,-1683.72,0.00016712,2]
[351067013,1738323069631,-500.0,0.00016712,2]
[351067014,1738323069643,-3515.95,0.00016712,2]
[351067015,1738323069652,-2978.69,0.00016712,2]
[351067016,1738323069661,-667.8,0.00016712,2]
[351067017,1738323069669,-5511.82,0.00016712,2]
[351067018,1738323069679,-500.0,0.00016712,2]
[351067019,1738323069688,-500.0,0.00016712,2]
[351067020,1738323069697,-500.0,0.00016712,2]
[351067021,1738323069706,-500.0,0.00016712,2]
[351067022,1738323069716,-1007.69,0.00016712,2]
[351067023,1738323069725,-749.94,0.00016712,2]
[351067024,1738323069735,-2950.32,0.00016712,2]
[351067025,1738323069744,-3729.85,0.00016712,2]
[351067026,1738323069753,-832.98,0.00016712,2]
[351067027,1738323069763,-6719.09,0.00016712,2]
[351067028,1738323069772,-5011.36,0.00016712,2]
[351067029,1738323069782,-9659.28,0.00016712,2]
[351067030,1738323069790,-786.72,0.00016712,2]
[351067031,1738323069800,-609.81,0.00016712,2]
[351067032,1738323069809,-2692.52,0.00016712,2]
[351067033,1738323069818,-16283.95,0.00016712,2]
[351067034,1738323069827,-500.0,0.00016712,2]
[351067035,1738323069969,-505.22215554,0.00016712,2]
[351067036,1738323069997,-500.0,0.00016712,2]
[351067037,1738323070008,-1717.37,0.00016712,2]
[351067038,1738323070018,-8168.26,0.00016712,2]
[351067039,1738323070028,-3203.56,0.00016712,2]
[351067040,1738323070039,-1518.78,0.00016712,2]
[351067041,1738323070049,-500.0,0.00016712,2]
[351067042,1738323070059,-1472.93,0.00016712,2]
[351067043,1738323070071,-500.0,0.00016712,2]
[351067044,1738323070080,-3231.63,0.00016712,2]
[351067045,1738323070090,-9057.52,0.00016712,2]
[351067046,1738323070099,-500.0,0.00016712,2]
[351067047,1738323070108,-5646.18,0.00016712,2]
[351067048,1738323070118,-11928.59,0.00016712,2]
[351067049,1738323070127,-500.0,0.00016712,2]
[351067050,1738323070136,-500.0,0.00016712,2]
[351067051,1738323070147,-9120.6,0.00016712,2]
[351067052,1738323070157,-500.0,0.00016712,2]
[351067053,1738323070166,-1301.1,0.00016712,2]
[351067054,1738323070175,-500.0,0.00016712,2]
[351067055,1738323070185,-2474.05,0.00016712,2]
[351067056,1738323070195,-1928.27,0.00016712,2]
[351067057,1738323070204,-576.67,0.00016712,2]
[351067058,1738323070213,-500.0,0.00016712,2]
[351067059,1738323070223,-584.22,0.00016712,2]
[351067060,1738323070231,-697.27,0.00016712,2]
[351067061,1738323070241,-881.35,0.00016712,2]
[351067062,1738323070250,-1354.07,0.00016712,2]
[351067063,1738323070259,-1975.43,0.00016712,2]
[351067064,1738323070269,-1585.85,0.00016712,2]
[351067065,1738323070278,-1300.92,0.00016712,2]
[351067066,1738323070287,-500.0,0.00016712,2]
[351067067,1738323070296,-2502.21,0.00016712,2]
[351067068,1738323070305,-637.65,0.00016712,2]
[351067069,1738323070314,-500.0,0.00016712,2]
[351067070,1738323070324,-500.0,0.00016712,2]
[351067071,1738323070333,-6551.41,0.00016712,2]
[351067072,1738323070342,-500.0,0.00016712,2]
[351067073,1738323070351,-2979.91,0.00016712,2]
[351067074,1738323070361,-909.21,0.00016712,2]
[351067075,1738323070370,-1586.17,0.00016712,2]
[351067076,1738323070381,-511.44014099,0.00016712,2]
[351067077,1738323070392,-563.64,0.00016712,2]
[351067078,1738323070402,-500.0,0.00016712,2]
[351067079,1738323070411,-2895.59,0.00016712,2]
[351067080,1738323070420,-500.0,0.00016712,2]
[351067081,1738323070429,-500.0,0.00016712,2]
[351067082,1738323070439,-1332.96,0.00016712,2]
[351067083,1738323070448,-645.36,0.00016712,2]
[351067084,1738323070457,-2149.94,0.00016712,2]
[351067085,1738323070467,-697.01,0.00016712,2]
[351067086,1738323070476,-1981.95,0.00016712,2]
[351067087,1738323070485,-4891.31,0.00016712,2]
[351067088,1738323070495,-500.0,0.00016712,2]
[351067089,1738323070504,-1314.59,0.00016712,2]
[351067090,1738323070514,-776.53,0.00016712,2]
[351067091,1738323070523,-746.69309055,0.0001673,2]
[351067092,1738323070533,-325.25943294,0.00016749,2]
[351067093,1738323070542,-1169.94934244,0.00016749,2]
[351067094,1738323070551,-5150.6905151,0.00016756,2]
[351067095,1738323070561,-225.35024042,0.00016773,2]
[351067096,1738323070570,-500.0,0.00016773,2]
[351067097,1738323070579,-500.72407641,0.00016773,2]
[351067098,1738323070588,-505.69880858,0.00016773,2]
[351067099,1738323070597,-500.0,0.00016773,2]
[351067100,1738323070607,-292.24,0.00016813,2]
[351067101,1738323070616,-277.44,0.00016813,2]
[351067102,1738323070626,-5150.6905151,0.00016821,2]
[351067103,1738323070634,-1460.96,0.00016848,2]
[351067104,1738323070646,-1460.96,0.00016848,2]
[351067105,1738323070655,-1460.96,0.00016848,2]
[351067106,1738323070664,-745.56,0.00016848,2]
[351067107,1738323070674,-500.0,0.00016848,2]
[351067108,1738323070684,-532.98312697,0.00016848,2]
[351067109,1738323070693,-818.62,0.00016848,2]
[351067110,1738323070702,-818.62,0.00016848,2]
[351067111,1738323070711,-818.62,0.00016848,2]
[351067112,1738323070720,-818.62,0.00016848,2]
[351067113,1738323070729,-818.62,0.00016848,2]
[351067114,1738323070738,-818.62,0.00016848,2]
[351067115,1738323070747,-818.62,0.00016848,2]
[351067116,1738323070757,-818.66,0.00016848,2]
[351067117,1738323070766,-1814.637341,0.00016849,2]
[351067118,1738323070776,-2620.30647,0.00016849,2]
[351067119,1738323070785,-500.0,0.00016849,2]
[351067120,1738323070794,-500.0,0.00016849,2]
[351067121,1738323070803,-500.0,0.00016849,2]
[351067122,1738323070813,-500.0,0.00016849,2]
[351067123,1738323070822,-503.68936495,0.00016849,2]
[351067124,1738323070832,-500.0,0.00016849,2]
[351067125,1738323070841,-500.0,0.00016849,2]
[351067126,1738323070850,-195.73986837,0.00016849,2]
[351067127,1738323070859,-560.96631003,0.00016849,2]
[351067128,1738323070869,-204.76063522,0.00016849,2]
[351067129,1738323070878,-500.0,0.00016849,2]
[351067130,1738323070887,-500.0,0.00016849,2]
[351067131,1738323070898,-646.62,0.00016849,2]
[351067132,1738323070908,-500.0,0.00016849,2]
[351067133,1738323070917,-1021.11,0.00016849,2]
[351067134,1738323070926,-500.0,0.00016849,2]
[351067135,1738323070936,-500.0,0.00016849,2]
[351067136,1738323070945,-864.03,0.00016849,2]
[351067137,1738323070955,-500.0,0.00016849,2]
[351067138,1738323070964,-500.0,0.00016849,2]
[351067139,1738323070974,-514.2,0.00016849,2]
[351067140,1738323070984,-500.0,0.00016849,2]
[351067141,1738323070997,-625.68,0.00016849,2]
[351067142,1738323071006,-500.0,0.00016849,2]
[351067143,1738323071015,-500.0,0.00016849,2]
[351067144,1738323071024,-380.65884931,0.00016849,2]
[351067145,1738323071034,-627.41,0.00016849,2]
[351067146,1738323071044,-500.0,0.00016849,2]
[351067147,1738323071053,-500.0,0.00016849,2]
[351067148,1738323071062,-500.0,0.00016849,2]
[351067149,1738323071072,-720.29,0.00016849,2]
[351067150,1738323071081,-584.56770077,0.00016849,2]
[351067151,1738323071090,-500.0,0.00016849,2]
[351067152,1738323071099,-500.0,0.00016849,2]
[351067153,1738323071108,-500.0,0.00016849,2]
[351067154,1738323071116,-500.0,0.00016849,2]
[351067155,1738323071126,-500.0,0.00016849,2]
[351067156,1738323071135,-594.96,0.00016849,2]
[351067157,1738323071146,-500.0,0.00016849,2]
[351067158,1738323071155,-500.0,0.00016849,2]
[351067159,1738323071164,-500.0,0.00016849,2]
[351067160,1738323071174,-500.0,0.00016849,2]
[351067161,1738323071183,-500.0,0.00016849,2]
[351067162,1738323071191,-500.0,0.00016849,2]
[351067163,1738323071200,-500.0,0.00016849,2]
[351067164,1738323071210,-500.0,0.00016849,2]
[351067165,1738323071219,-500.0,0.00016849,2]
[351067166,1738323071228,-583.47,0.00016849,2]
[351067167,1738323071237,-500.0,0.00016849,2]
[351067168,1738323071245,-500.0,0.00016849,2]
[351067169,1738323071254,-563.00132685,0.00016849,2]
[351067170,1738323071263,-500.0,0.00016849,2]
[351067171,1738323071271,-692.31,0.00016849,2]
[351067172,1738323071280,-500.0,0.00016849,2]
[351067173,1738323071289,-500.0,0.00016849,2]
[351067174,1738323071298,-500.0,0.00016849,2]
[351067175,1738323071307,-479.60567059,0.00016849,2]
[351067176,1738323071316,-500.0,0.00016849,2]
[351067177,1738323071325,-500.0,0.00016849,2]
[351067178,1738323071335,-500.0,0.00016849,2]
[351067179,1738323071343,-642.58,0.00016849,2]
[351067180,1738323071352,-500.0,0.00016849,2]
[351067181,1738323071362,-500.0,0.00016849,2]
[351067182,1738323071371,-500.0,0.00016849,2]
[351067183,1738323071380,-475.59983042,0.00016849,2]
[351067184,1738323071388,-268.708961,0.00016849,2]
[351067185,1738323071399,-500.0,0.00016849,2]
[351067186,1738323071408,-500.0,0.00016849,2]
[351067187,1738323071418,-1244.98,0.00016849,2]
[351067188,1738323071426,-1199.61,0.00016849,2]
[351067189,1738323071435,-500.0,0.00016849,2]
[351067190,1738323071444,-506.66,0.00016849,2]
[351067191,1738323071454,-500.0,0.00016849,2]
[351067192,1738323071463,-500.0,0.00016849,2]
[351067193,1738323071472,-500.0,0.00016849,2]
[351067194,1738323071481,-500.0,0.00016849,2]
[351067195,1738323071490,-500.0,0.00016849,2]
[351067196,1738323071502,-500.0,0.00016849,2]
[351067197,1738323071511,-595.49,0.00016849,2]
[351067198,1738323071521,-500.0,0.00016849,2]
[351067199,1738323071531,-500.0,0.00016849,2]
[351067200,1738323071541,-500.0,0.00016849,2]
[351067201,1738323071551,-500.0,0.00016849,2]
[351067202,1738323071561,-1274.38,0.00016849,2]
[351067203,1738323071570,-500.0,0.00016849,2]
[351067204,1738323071580,-755.45,0.00016849,2]
[351067205,1738323071589,-500.0,0.00016849,2]
[351067206,1738323071599,-500.0,0.00016849,2]
[351067207,1738323071608,-500.0,0.00016849,2]
[351067208,1738323071617,-500.0,0.00016849,2]
[351067209,1738323071627,-500.0,0.00016849,2]
[351067210,1738323071636,-500.0,0.00016849,2]
[351067211,1738323071648,-500.0,0.00016849,2]
[351067212,1738323071657,-506.32098422,0.00016849,2]
[351067213,1738323071666,-500.0,0.00016849,2]
[351067214,1738323071675,-532.66,0.00016849,2]
[351067215,1738323071684,-500.0,0.00016849,2]
[351067216,1738323071693,-680.03,0.00016849,2]
[351067217,1738323071702,-912.55,0.00016849,2]
[351067218,1738323071711,-500.0,0.00016849,2]
[351067219,1738323071721,-500.0,0.00016849,2]
[351067220,1738323071730,-500.0,0.00016849,2]
[351067221,1738323071739,-500.0,0.00016849,2]
[351067222,1738323071750,-500.0,0.00016849,2]
[351067223,1738323071759,-500.0,0.00016849,2]
[351067224,1738323071769,-500.0,0.00016849,2]
[351067225,1738323071778,-500.0,0.00016849,2]
[351067226,1738323071787,-500.0,0.00016849,2]
[351067227,1738323071797,-500.0,0.00016849,2]
[351067228,1738323071806,-641.79,0.00016849,2]
[351067229,1738323071816,-500.0,0.00016849,2]
[351067230,1738323071825,-500.0,0.00016849,2]
[351067231,1738323071834,-500.0,0.00016849,2]
[351067232,1738323071844,-999.77,0.00016849,2]
[351067233,1738323071853,-500.0,0.00016849,2]
[351067234,1738323071863,-500.0,0.00016849,2]
[351067235,1738323071872,-500.0,0.00016849,2]
[351067236,1738323071882,-500.0,0.00016849,2]
[351067237,1738323071893,-500.0,0.00016849,2]
[351067238,1738323071902,-712.15,0.00016849,2]
[351067239,1738323071912,-500.0,0.00016849,2]
[351067240,1738323071922,-812.58,0.00016849,2]
[351067241,1738323071931,-500.0,0.00016849,2]
[351067242,1738323071940,-500.0,0.00016849,2]
[351067243,1738323071950,-500.0,0.00016849,2]
[351067244,1738323071959,-261.98224934,0.00016849,2]
[351067245,1738323071969,-685.64,0.00016849,2]
[351067246,1738323071978,-923.31,0.00016849,2]
[351067247,1738323071989,-500.0,0.00016849,2]
[351067248,1738323072000,-621.16,0.00016849,2]
[351067249,1738323072009,-506.51967141,0.00016849,2]
[351067250,1738323072018,-500.0,0.00016849,2]
[351067251,1738323072027,-2002.83,0.00016849,2]
[351067252,1738323072038,-1251.02,0.00016849,2]
[351067253,1738323072047,-1563.52,0.00016849,2]
[351067254,1738323072055,-500.0,0.00016849,2]
[351067255,1738323072065,-500.0,0.00016849,2]
[351067256,1738323072074,-500.0,0.00016849,2]
[351067257,1738323072083,-500.0,0.00016849,2]
[351067258,1738323072092,-500.0,0.00016849,2]
[351067259,1738323072101,-500.0,0.00016849,2]
[351067260,1738323072111,-500.0,0.00016849,2]
[351067261,1738323072120,-500.0,0.00016849,2]
[351067262,1738323072128,-500.0,0.00016849,2]
[351067263,1738323072137,-542.45,0.00016849,2]
[351067264,1738323072147,-2183.31,0.00016849,2]
[351067265,1738323072156,-631.52,0.00016849,2]
[351067266,1738323072165,-206.85823922,0.00016849,2]
[351067267,1738323072175,-541.14,0.00016849,2]
[351067268,1738323072184,-1559.63,0.00016849,2]
[351067269,1738323072193,-500.0,0.00016849,2]
[351067270,1738323072342,-808.68,0.00016849,2]
[351067271,1738323072352,-500.0,0.00016849,2]
[351067272,1738323072362,-500.0,0.00016849,2]
[351067273,1738323072371,-1089.13,0.00016849,2]
[351067274,1738323072380,-500.0,0.00016849,2]
[351067275,1738323072389,-500.0,0.00016849,2]
[351067276,1738323072400,-524.66,0.00016849,2]
[351067277,1738323072410,-1658.21,0.00016849,2]
[351067278,1738323072420,-500.0,0.00016849,2]
[351067279,1738323072429,-1446.98,0.00016849,2]
[351067280,1738323072438,-500.0,0.00016849,2]
[351067281,1738323072447,-500.0,0.00016849,2]
[351067282,1738323072456,-825.0,0.00016849,2]
[351067283,1738323072465,-1082.85,0.00016849,2]
[351067284,1738323072474,-1218.3,0.00016849,2]
[351067285,1738323072483,-350.26437597,0.00016849,2]
[351067286,1738323072493,-1319.18,0.00016849,2]
[351067287,1738323072502,-1340.29,0.00016849,2]
[351067288,1738323072511,-500.0,0.00016849,2]
[351067289,1738323072520,-500.0,0.00016849,2]
[351067290,1738323072529,-500.0,0.00016849,2]
[351067291,1738323072539,-500.0,0.00016849,2]
[351067292,1738323072547,-824.43,0.00016849,2]
[351067293,1738323072557,-500.0,0.00016849,2]
[351067294,1738323072566,-500.0,0.00016849,2]
[351067295,1738323072576,-1107.6,0.00016849,2]
[351067296,1738323072585,-906.09,0.00016849,2]
[351067297,1738323072594,-500.0,0.00016849,2]
[351067298,1738323072603,-500.0,0.00016849,2]
[351067299,1738323072612,-500.0,0.00016849,2]
[351067300,1738323072622,-1720.71,0.00016849,2]
[351067301,1738323072631,-500.0,0.00016849,2]
[351067302,1738323072640,-685.52,0.00016849,2]
[351067303,1738323072650,-500.0,0.00016849,2]
[351067304,1738323072659,-500.0,0.00016849,2]
[351067305,1738323072668,-500.0,0.00016849,2]
[351067306,1738323072677,-500.0,0.00016849,2]
[351067307,1738323072687,-500.0,0.00016849,2]
[351067308,1738323072696,-500.0,0.00016849,2]
[351067309,1738323072705,-675.93,0.00016849,2]
[351067310,1738323072715,-500.0,0.00016849,2]
[351067311,1738323072724,-517.89,0.00016849,2]
[351067312,1738323072733,-500.0,0.00016849,2]
[351067313,1738323072742,-1524.37,0.00016849,2]
[351067314,1738323072752,-952.99,0.00016849,2]
[351067315,1738323072762,-500.0,0.00016849,2]
[351067316,1738323072772,-500.0,0.00016849,2]
[351067317,1738323072781,-1065.27,0.00016849,2]
[351067318,1738323072790,-500.0,0.00016849,2]
[351067319,1738323072800,-540.49,0.00016849,2]
[351067320,1738323072809,-1066.82,0.00016849,2]
[351067321,1738323072819,-500.0,0.00016849,2]
[351067322,1738323072828,-660.13,0.00016849,2]
[351067323,1738323072837,-2110.08,0.00016849,2]
[351067324,1738323072847,-500.0,0.00016849,2]
[351067325,1738323072857,-500.0,0.00016849,2]
[351067326,1738323072866,-500.0,0.00016849,2]
[351067327,1738323072875,-872.44,0.00016849,2]
[351067328,1738323072884,-500.0,0.00016849,2]
[351067329,1738323072894,-500.0,0.00016849,2]
[351067330,1738323072903,-500.0,0.00016849,2]
[351067331,1738323072913,-500.0,0.00016849,2]
[351067332,1738323072923,-1188.82,0.00016849,2]
[351067333,1738323072932,-508.26219261,0.00016849,2]
[351067334,1738323072941,-500.0,0.00016849,2]
[351067335,1738323072950,-500.0,0.00016849,2]
[351067336,1738323072960,-2212.75,0.00016849,2]
[351067337,1738323072969,-500.0,0.00016849,2]
[351067338,1738323072978,-2571.72,0.00016849,2]
[351067339,1738323072991,-500.0,0.00016849,2]
[351067340,1738323073000,-500.0,0.00016849,2]
[351067341,1738323073010,-1396.67,0.00016849,2]
[351067342,1738323073020,-2264.19,0.00016849,2]
[351067343,1738323073030,-500.0,0.00016849,2]
[351067344,1738323073040,-615.04,0.00016849,2]
[351067345,1738323073050,-500.0,0.00016849,2]
[351067346,1738323073059,-500.0,0.00016849,2]
[351067347,1738323073071,-1486.69,0.00016849,2]
[351067348,1738323073080,-500.0,0.00016849,2]
[351067349,1738323073090,-1434.53,0.00016849,2]
[351067350,1738323073099,-500.0,0.00016849,2]
[351067351,1738323073108,-500.0,0.00016849,2]
[351067352,1738323073118,-4002.22,0.00016849,2]
[351067353,1738323073127,-500.0,0.00016849,2]
[351067354,1738323073143,-842.74,0.00016849,2]
[351067355,1738323073152,-500.0,0.00016849,2]
[351067356,1738323073161,-1857.52,0.00016849,2]
[351067357,1738323073171,-500.0,0.00016849,2]
[351067358,1738323073180,-1874.3,0.00016849,2]
[351067359,1738323073190,-500.0,0.00016849,2]
[351067360,1738323073199,-500.0,0.00016849,2]
[351067361,1738323073208,-2209.64,0.00016849,2]
[351067362,1738323073218,-500.0,0.00016849,2]
[351067363,1738323073227,-1744.69,0.00016849,2]
[351067364,1738323073236,-500.0,0.00016849,2]
[351067365,1738323073245,-500.0,0.00016849,2]
[351067366,1738323073254,-500.0,0.00016849,2]
[351067367,1738323073264,-1162.31,0.00016849,2]
[351067368,1738323073274,-2054.43,0.00016849,2]
[351067369,1738323073283,-500.0,0.00016849,2]
[351067370,1738323073293,-500.0,0.00016849,2]
[351067371,1738323073302,-500.0,0.00016849,2]
[351067372,1738323073312,-1690.08,0.00016849,2]
[351067373,1738323073321,-500.0,0.00016849,2]
[351067374,1738323073331,-2453.26,0.00016849,2]
[351067375,1738323073340,-2088.93,0.00016849,2]
[351067376,1738323073349,-500.0,0.00016849,2]
[351067377,1738323073359,-500.0,0.00016849,2]
[351067378,1738323073368,-1384.15,0.00016849,2]
[351067379,1738323073377,-2748.88,0.00016849,2]
[351067380,1738323073386,-500.0,0.00016849,2]
[351067381,1738323073396,-500.0,0.00016849,2]
[351067382,1738323073406,-500.0,0.00016849,2]
[351067383,1738323073415,-1157.73,0.00016849,2]
[351067384,1738323073425,-500.0,0.00016849,2]
[351067385,1738323073434,-500.0,0.00016849,2]
[351067386,1738323073444,-500.0,0.00016849,2]
[351067387,1738323073454,-500.0,0.00016849,2]
[351067388,1738323073463,-936.11,0.00016849,2]
[351067389,1738323073474,-500.0,0.00016849,2]
[351067390,1738323073483,-495.0,0.00016849,2]
[351067391,1738323073493,-500.0,0.00016849,2]
[351067392,1738323073503,-500.0,0.00016849,2]
[351067393,1738323073513,-783.32,0.00016849,2]
[351067394,1738323073522,-576.82695086,0.00016849,2]
[351067395,1738323073532,-823.42,0.00016849,2]
[351067396,1738323073542,-500.0,0.00016849,2]
[351067397,1738323073551,-500.0,0.00016849,2]
[351067398,1738323073560,-522.93,0.00016849,2]
[351067399,1738323073569,-500.0,0.00016849,2]
[351067400,1738323073579,-500.0,0.00016849,2]
[351067401,1738323073588,-2972.09,0.00016849,2]
[351067402,1738323073598,-500.0,0.00016849,2]
[351067403,1738323073607,-1094.11,0.00016849,2]
[351067404,1738323073616,-500.0,0.00016849,2]
[351067405,1738323073625,-1202.8,0.00016849,2]
[351067406,1738323073634,-1747.36,0.00016849,2]
[351067407,1738323073645,-500.0,0.00016849,2]
[351067408,1738323073654,-500.0,0.00016849,2]
[351067409,1738323073663,-1325.09,0.00016849,2]
[351067410,1738323073672,-500.0,0.00016849,2]
[351067411,1738323073681,-522.99822145,0.00016849,2]
[351067412,1738323073690,-500.0,0.00016849,2]
[351067413,1738323073699,-1401.57,0.00016849,2]
[351067414,1738323073709,-705.87,0.00016849,2]
[351067415,1738323073718,-500.0,0.00016849,2]
[351067416,1738323073727,-306.46050938,0.00016849,2]
[351067417,1738323073737,-959.86,0.00016849,2]
[351067418,1738323073746,-598.63,0.00016849,2]
[351067419,1738323073755,-500.0,0.00016849,2]
[351067420,1738323073765,-500.0,0.00016849,2]
[351067421,1738323073775,-500.0,0.00016849,2]
[351067422,1738323073785,-1400.54,0.00016849,2]
[351067423,1738323073795,-1501.98,0.00016849,2]
[351067424,1738323073804,-1280.35,0.00016849,2]
[351067425,1738323073813,-1680.19,0.00016849,2]
[351067426,1738323073823,-500.0,0.00016849,2]
[351067427,1738323073832,-536.6,0.00016849,2]
[351067428,1738323073843,-500.0,0.00016849,2]
[351067429,1738323073852,-526.79,0.00016849,2]
[351067430,1738323073862,-1004.99,0.00016849,2]
[351067431,1738323073871,-1188.35,0.00016849,2]
[351067432,1738323073881,-529.21,0.00016849,2]
[351067433,1738323073890,-1116.16,0.00016849,2]
[351067434,1738323073902,-500.0,0.00016849,2]
[351067435,1738323073912,-1399.48,0.00016849,2]
[351067436,1738323073922,-1496.14,0.00016849,2]
[351067437,1738323073931,-500.0,0.00016849,2]
[351067438,1738323073940,-500.0,0.00016849,2]
[351067439,1738323073949,-1080.75,0.00016849,2]
[351067440,1738323073959,-920.99,0.00016849,2]
[351067441,1738323073968,-500.0,0.00016849,2]
[351067442,1738323073978,-500.0,0.00016849,2]
[351067443,1738323073987,-500.0,0.00016849,2]
[351067444,1738323074000,-524.05,0.00016849,2]
[351067445,1738323074009,-500.0,0.00016849,2]
[351067446,1738323074018,-500.0,0.00016849,2]
[351067447,1738323074029,-917.77,0.00016849,2]
[351067448,1738323074038,-500.0,0.00016849,2]
[351067449,1738323074048,-1066.06,0.00016849,2]
[351067450,1738323074057,-500.0,0.00016849,2]
[351067451,1738323074067,-1221.67,0.00016849,2]
[351067452,1738323074077,-715.06,0.00016849,2]
[351067453,1738323074087,-599.94,0.00016849,2]
[351067454,1738323074096,-543.14,0.00016849,2]
[351067455,1738323074105,-2242.55,0.00016849,2]
[351067456,1738323074113,-1491.37,0.00016849,2]
[351067457,1738323074123,-500.0,0.00016849,2]
[351067458,1738323074133,-967.53,0.00016849,2]
[351067459,1738323074142,-500.0,0.00016849,2]
[351067460,1738323074152,-2304.6,0.00016849,2]
[351067461,1738323074162,-500.0,0.00016849,2]
[351067462,1738323074171,-500.0,0.00016849,2]
[351067463,1738323074181,-674.76,0.00016849,2]
[351067464,1738323074192,-691.34,0.00016849,2]
[351067465,1738323074201,-533.79,0.00016849,2]
[351067466,1738323074210,-500.0,0.00016849,2]
[351067467,1738323074219,-655.5,0.00016849,2]
[351067468,1738323074229,-500.0,0.00016849,2]
[351067469,1738323074238,-927.88,0.00016849,2]
[351067470,1738323074249,-500.0,0.00016849,2]
[351067471,1738323074259,-500.0,0.00016849,2]
[351067472,1738323074269,-500.0,0.00016849,2]
[351067473,1738323074278,-1225.27,0.00016849,2]
[351067474,1738323074287,-1232.82,0.00016849,2]
[351067475,1738323074297,-500.0,0.00016849,2]
[351067476,1738323074306,-500.0,0.00016849,2]
[351067477,1738323074315,-660.11,0.00016849,2]
[351067478,1738323074325,-2677.1,0.00016849,2]
[351067479,1738323074335,-500.0,0.00016849,2]
[351067480,1738323074344,-2095.21,0.00016849,2]
[351067481,1738323074353,-538.41810195,0.00016849,2]
[351067482,1738323074363,-500.0,0.00016849,2]
[351067483,1738323074372,-1904.55,0.00016849,2]
[351067484,1738323074382,-500.0,0.00016849,2]
[351067485,1738323074525,-500.0,0.00016849,2]
[351067486,1738323074535,-500.0,0.00016849,2]
[351067487,1738323074545,-1345.25,0.00016849,2]
[351067488,1738323074556,-799.53,0.00016849,2]
[351067489,1738323074565,-500.0,0.00016849,2]
[351067490,1738323074574,-1324.34,0.00016849,2]
[351067491,1738323074582,-500.0,0.00016849,2]
[351067492,1738323074592,-500.0,0.00016849,2]
[351067493,1738323074601,-500.0,0.00016849,2]
[351067494,1738323074611,-500.0,0.00016849,2]
[351067495,1738323074620,-500.0,0.00016849,2]
[351067496,1738323074630,-500.0,0.00016849,2]
[351067497,1738323074640,-500.0,0.00016849,2]
[351067498,1738323074651,-456.14127513,0.00016849,2]
[351067499,1738323074660,-1071.62,0.00016849,2]
[351067500,1738323074670,-500.0,0.00016849,2]
[351067501,1738323074679,-500.0,0.00016849,2]